Workbook

Sheet Données
B2: Comparatif d'un portefeuille de crédit avec ou sans recours à un fonds de garantie
B4: Comparatif simplifié à vocation illustrative
B6: 1 | D6: Marge bancaire | I6: Commentaires
D8: Données
D10: Production de crédits à garantir | E10: 2000 | F10: FCFA
D12: Maturité des crédits | E12: 4 | F12: =IF(E12=1," an"," ans") -> ans
D14: Marge bancaire | E14: 0.12 | I14: Rendement des prêts - coût des capitaux (moyenne UMOA 2017)
D16: Contentieux indemnisés | E16: 0.02 | F16: par an | I16: % sur le capital initial
D18: Quotité garantie | E18: 0.5
D20: Commission | E20: 0.015 | I20: Calculé sur le capital restant dû (début de période)
D22: Taux de récupération sur contentieux | E22: 0.1
D25: Résultats
E26: Sans le FG | G26: Avec le FG
D28: Marge brute | E28: =-$E$10-(PMT($E$14/12,$E$12*12,$E$10)*$E$12*12) -> 528.0482015 | G28: =-$E$10-(PMT($E$14/12,$E$12*12,$E$10)*$E$12*12)-(E10*LOOKUP(E12*12,Paramètres!B47:B51,Paramètres!I47:I51)*E18) -> 488.2982015
D30: Contentieux | E30: =$E$16*$E$12*$E$10 -> 160 | G30: =$E$16*$E$12*$E$10 -> 160
D32: Taux brut de dégradation | E32: =LOOKUP(E12*12,Paramètres!B40:B44,Paramètres!I40:I44) -> 0.1488372093 | G32: =LOOKUP(E12*12,Paramètres!B40:B44,Paramètres!I40:I44) -> 0.1488372093
D34: Récupération | E34: =E30*E22 -> 16 | G34: =(G30-E34)*E18+E34 -> 88
D36: Marge nette | E36: =E28-E30+E34 -> 384.0482015 | G36: =G28-G30+G34 -> 416.2982015
D38: Variation | G38: =(G36-E36)/E36 -> 0.08397383421
B41: 2 | D41: Trésorerie
D43: Données
D45: Durée d'une procédure contentieuse | E45: 4 | F45: années
D47: Contentieux indemnisés | E47: =E16 -> 0.02
D49: Coût des ressources | E49: 0.05
D51: Quotité du contentieux indemnisé | E51: 0.6 | I51: Versé dès le fait générateur
D53: Résultats
E54: Sans le FG | G54: Avec le FG
D56: Contentieux | E56: =$E$47*$E$12*$E$10 -> 160 | G56: =$E$47*$E$12*$E$10 -> 160
D58: Gain de trésorerie | G58: =ROUND(-E56*E18*E51*(1-POWER(1+E49,E45)),0) -> 10
B61: 3 | D61: Besoins en fonds propres
D63: Données
D65: Encours moyen de crédit | E65: =E10/2 -> 1000 | F65: FCFA | I65: Encours moyen sur la période
D67: Coût moyen des fonds propres | E67: 0.135 | I67: en %
D69: Pondération du risque | E69: 1 | I69: % prévu dans le dispositif prudentiel pour les PME
D71: Pondération du risque avec FG | E71: 0.3 | I71: % prévu dans le dispositif prudentiel pour les FG selon leur pondération
D73: Résultats
E74: Sans le FG | G74: Avec le FG
D76: Pondération du risque | E76: =E69 -> 1 | G76: =E71 -> 0.3
D78: Actifs de crédit pondérés | E78: =E65*E76 -> 1000 | G78: =(E65*G76*E18)+(E65*(1-E18)*E76) -> 650
D80: Besoins de fonds propres | E80: =11.5%*E78 -> 115 | G80: =11.5%*G78 -> 74.75
D82: Coût des fonds propres / an | E82: =E80*$E67 -> 15.525 | G82: =G80*$E67 -> 10.09125
D84: Variation | G84: =(G82-E82)/E82 -> -0.35

Sheet Bilan du comparatif
B2: Comparatif avec ou sans recours à un fonds de garantie
B4: Comparatif simplifié à vocation illustrative
B6: 1 | D6: Bilan sur une génération de crédit
E8: Sans le FG | G8: Avec le FG
D10: Marge nette | E10: =Données!E36 -> 384.0482015 | G10: =Données!G36 -> 416.2982015
D12: Gain de trésorerie sur cx indemnisés | G12: =Données!G58 -> 10
D14: Coût des fonds propres / an | E14: =-Données!E82 -> -15.525 | G14: =-Données!G82 -> -10.09125
D16: TOTAL | E16: =E10+E14 -> 368.5232015 | G16: =G10+G14+G12 -> 416.2069515
D18: Variation | G18: =(G16-E16)/E16 -> 0.1293914462

Sheet Paramètres (hidden)
B3: Tables de pilotage
B5: Durée | D5: Amortissement | J5: Taux commission flat
D6: A1 | E6: A2 | F6: A3 | G6: A4 | H6: A5
B8: 12 | D8: 1 | J8: 0.01
B9: 24 | D9: 0.5 | E9: 1 | J9: 0.013
B10: 36 | D10: =1/3 -> 0.3333333333 | E10: =2/3 -> 0.6666666667 | F10: 1 | J10: 0.015
B11: 48 | D11: 0.2 | E11: 0.45 | F11: 0.7 | G11: 1 | J11: 0.017
B12: 60 | D12: 0.15 | E12: =1/3 -> 0.3333333333 | F12: 0.53 | G12: =3/4 -> 0.75 | H12: 1 | J12: 0.02
D14: 1 | E14: 0.67 | F14: 0.33 | H14: =AVERAGE(D14:F14) -> 0.6666666667
D15: 0.025 | E15: 0.025 | F15: 0.025 | H15: =D15+E15+F15 -> 0.075
D16: =D15/D14 -> 0.025 | E16: =E15/E14 -> 0.03731343284 | F16: =F15/F14 -> 0.07575757576 | H16: =H15/H14 -> 0.1125
B18: Tableau des encours fin d'année
B19: 12 | D19: =1-D8 -> 0
B20: 24 | D20: =1-D9 -> 0.5 | E20: 0
B21: 36 | D21: 0.6666666667 | E21: 0.3333333333 | F21: 0
B22: 48 | D22: 0.8 | E22: 0.55 | F22: 0.3 | G22: 0
B23: 60 | D23: 0.85 | E23: 0.6666666667 | F23: 0.47 | G23: 0.25 | H23: 0
B25: Tableau des encours moyens
B26: 12 | D26: =(1+D19)/2 -> 0.5 | I26: =AVERAGE(D26:H26) -> 0.5
B27: 24 | D27: =(1+D20)/2 -> 0.75 | E27: =(E20+D20)/2 -> 0.25 | I27: =AVERAGE(D27:H27) -> 0.5
B28: 36 | D28: =(1+D21)/2 -> 0.8333333333 | E28: =(E21+D21)/2 -> 0.5 | F28: 0.1666666667 | I28: =AVERAGE(D28:H28) -> 0.5
B29: 48 | D29: =(1+D22)/2 -> 0.9 | E29: 0.675 | F29: =(F22+E22)/2 -> 0.425 | G29: 0.15 | I29: =AVERAGE(D29:H29) -> 0.5375
B30: 60 | D30: =(1+D23)/2 -> 0.925 | E30: 0.7583333333 | F30: =(F23+E23)/2 -> 0.5683333333 | G30: 0.36 | H30: 0.125 | I30: =AVERAGE(D30:H30) -> 0.5473333333
B32: Tableau des contentieux
B33: 12 | D33: =Données!E16 -> 0.02 | I33: =SUM(D33:H33) -> 0.02
B34: 24 | D34: =D33 -> 0.02 | E34: =D33 -> 0.02 | I34: =SUM(D34:H34) -> 0.04
B35: 36 | D35: =D34 -> 0.02 | E35: =D34 -> 0.02 | F35: =E34 -> 0.02 | I35: =SUM(D35:H35) -> 0.06
B36: 48 | D36: =D35 -> 0.02 | E36: =D35 -> 0.02 | F36: 0.02 | G36: 0.02 | I36: =SUM(D36:H36) -> 0.08
B37: 60 | D37: =D36 -> 0.02 | E37: 0.02 | F37: 0.02 | G37: 0.02 | H37: 0.02 | I37: =SUM(D37:H37) -> 0.1
B39: Taux brut de dégradation
B40: 12 | D40: =D33/D26 -> 0.04 | I40: =I33/I26 -> 0.04
B41: 24 | D41: =D34/D27 -> 0.02666666667 | E41: =E34/E27 -> 0.08 | I41: =I34/I27 -> 0.08
B42: 36 | D42: =D35/D28 -> 0.024 | E42: =E35/E28 -> 0.04 | F42: =F35/F28 -> 0.12 | I42: =I35/I28 -> 0.12
B43: 48 | D43: =D36/D29 -> 0.02222222222 | E43: =E36/E29 -> 0.02962962963 | F43: 0.04705882353 | G43: 0.1333333333 | I43: =I36/I29 -> 0.1488372093
B44: 60 | D44: =D37/D30 -> 0.02162162162 | E44: =E37/E30 -> 0.02637362637 | F44: =F37/F30 -> 0.03519061584 | G44: 0.05555555556 | H44: 0.16 | I44: =I37/I30 -> 0.1827040195
B46: Commission
B47: 12 | D47: =Données!$E$20 -> 0.015 | I47: =SUM(D47:H47) -> 0.015
B48: 24 | D48: =Données!$E$20 -> 0.015 | E48: =Données!$E$20*D20 -> 0.0075 | I48: =SUM(D48:H48) -> 0.0225
B49: 36 | D49: =Données!$E$20 -> 0.015 | E49: =Données!$E$20*D21 -> 0.01 | F49: =Données!$E$20*E21 -> 0.005 | I49: =SUM(D49:H49) -> 0.03
B50: 48 | D50: =Données!$E$20 -> 0.015 | E50: =Données!$E$20*D22 -> 0.012 | F50: =Données!$E$20*E22 -> 0.00825 | G50: =Données!$E$20*F22 -> 0.0045 | I50: =SUM(D50:H50) -> 0.03975
B51: 60 | D51: =Données!$E$20 -> 0.015 | E51: =Données!$E$20*D23 -> 0.01275 | F51: =Données!$E$20*E23 -> 0.01 | G51: =Données!$E$20*F23 -> 0.00705 | H51: =Données!$E$20*G23 -> 0.00375 | I51: =SUM(D51:H51) -> 0.04855
C55: Sans le FG | D55: Avec le FG
B56: Marge nette | C56: =Données!E36 -> 384.0482015 | D56: =Données!G36 -> 416.2982015
B57: Gain de trésorerie sur cx indemnisés | C57: =Données!E58 -> 0 | D57: =Données!G58 -> 10
B58: Coût des fonds propres / an | C58: =-Données!E82 -> -15.525 | D58: =-Données!G82 -> -10.09125
B59: TOTAL | C59: =C56+C58+C57 -> 368.5232015 | D59: =D56+D58+D57 -> 416.2069515
